bitfinex/quotes_SOLUSD_20241016
["timestamp","ask_amount","ask_price","bid_price","bid_amount"]
[1729070826699,6.4537,154.95,154.89,31.00657782]
[1729070826913,6.4542,154.94,154.87,12.84300402]
[1729070827091,6.4542,154.94,154.88,20.0]
[1729070827609,30.0,154.91,154.88,20.0]
[1729070828201,30.0,154.91,154.83,22.5413]
[1729070828202,30.0,154.91,154.86,20.0]
[1729070829608,30.0,154.91,154.83,0.96911169]
[1729070829609,36.4554,154.91,154.83,0.96911169]
[1729070829810,6.4559,154.9,154.83,0.96911169]
[1729070830112,30.0,154.88,154.83,0.96911169]
[1729070832216,30.0,154.88,154.81,12.84300402]
[1729070832819,30.0,154.88,154.82,20.0]
[1729070833398,30.0,154.88,154.84,20.0]
[1729070837188,30.0,154.88,154.8,20.96932751]
[1729070837394,30.0,154.88,154.8,33.81233153]
[1729070839460,30.0,154.88,154.8,32.84300402]
[1729070839648,36.4567,154.88,154.8,32.84300402]
[1729070839947,6.4575,154.86,154.8,20.0]
[1729070840145,30.0,154.85,154.8,20.0]
[1729070844540,21.6872,154.87,154.8,20.0]
[1729070845037,22.2764,154.91,154.83,20.0]
[1729070845215,22.2764,154.91,154.85,20.0]
[1729070846100,6.4558,154.9,154.85,20.0]
[1729070847519,30.0,154.86,154.85,20.0]
[1729070850513,30.0,154.86,154.83,20.0]
[1729070864541,30.0,154.86,154.8,20.0]
[1729070864829,23.776884,154.87,154.81,3.78763738]
[1729070865041,6.458,154.85,154.8,3.78763738]
[1729070865409,6.458,154.85,154.77,3.78763738]
[1729070865616,6.458,154.85,154.78,3.78763738]
[1729070865809,22.5021,154.86,154.79,3.78763738]
[1729070866009,22.5021,154.86,154.77,23.78763738]
[1729070866230,22.5021,154.86,154.76,13.81259178]
[1729070866231,22.5021,154.86,154.78,23.78763738]
[1729070866419,22.5021,154.86,154.78,20.0]
[1729070866621,22.5021,154.86,154.79,23.78905185]
[1729070866822,22.5021,154.86,154.8,23.78905185]
[1729070867038,22.5021,154.86,154.8,20.0]
[1729070867210,22.5021,154.86,154.77,20.0]
[1729070867418,22.5021,154.86,154.78,3.78839653]
[1729070867632,22.5021,154.86,154.79,3.78839653]
[1729070867834,30.0,154.83,154.78,3.78839653]
[1729070868019,30.0,154.83,154.79,3.78839653]
[1729070868223,30.0,154.83,154.77,20.0]
[1729070868224,30.0,154.83,154.78,3.78839653]
[1729070868424,30.0,154.83,154.79,3.78839653]
[1729070868623,30.0,154.83,154.78,3.78839653]
[1729070868809,30.0,154.83,154.79,3.78839653]
[1729070869012,30.0,154.83,154.78,3.78839653]
[1729070869212,30.0,154.83,154.79,3.78839653]
[1729070869426,30.0,154.83,154.8,3.78839653]
[1729070869625,30.0,154.83,154.78,3.78839653]
[1729070869834,30.0,154.83,154.79,3.78839653]
[1729070870132,30.0,154.83,154.78,3.78839653]
[1729070870336,30.0,154.83,154.79,3.78839653]
[1729070870526,30.0,154.83,154.8,3.78839653]
[1729070870837,30.0,154.83,154.78,3.78839653]
[1729070871216,30.0,154.83,154.79,3.78839653]
[1729070871418,30.0,154.83,154.8,3.78839653]
[1729070871617,30.0,154.83,154.78,3.78839653]
[1729070871816,30.0,154.83,154.79,3.78839653]
[1729070872036,30.0,154.83,154.8,3.78839653]
[1729070872238,30.0,154.83,154.77,20.0]
[1729070872239,30.0,154.83,154.78,3.78839653]
[1729070872412,30.0,154.83,154.79,3.78839653]
[1729070872609,30.0,154.83,154.8,3.78839653]
[1729070872812,30.0,154.83,154.81,3.78839653]
[1729070873025,30.0,154.83,154.78,3.78839653]
[1729070873234,30.0,154.83,154.79,3.78839653]
[1729070873452,30.0,154.83,154.8,3.78839653]
[1729070873745,30.0,154.83,154.81,3.78839653]
[1729070873910,30.0,154.83,154.77,20.0]
[1729070874113,30.0,154.83,154.78,3.79557413]
[1729070874342,30.0,154.83,154.79,3.79557413]
[1729070874545,30.0,154.83,154.8,3.79557413]
[1729070874964,30.0,154.83,154.77,20.0]
[1729070875131,30.0,154.83,154.78,3.79627702]
[1729070875332,30.0,154.83,154.79,3.79627702]
[1729070875546,30.0,154.83,154.77,20.0]
[1729070875547,30.0,154.83,154.8,3.79627702]
[1729070875855,30.0,154.83,154.78,3.79627702]
[1729070876055,30.0,154.83,154.79,3.79627702]
[1729070876258,30.0,154.83,154.8,3.79627702]
[1729070876443,30.0,154.83,154.78,3.79627702]
[1729070876740,30.0,154.83,154.79,3.79627702]
[1729070877035,30.0,154.83,154.77,20.0]
[1729070877036,30.0,154.83,154.8,3.79627702]
[1729070877240,30.0,154.83,154.78,3.79627702]
[1729070877437,30.0,154.83,154.77,20.0]
[1729070877438,30.0,154.83,154.79,3.79627702]
[1729070877636,30.0,154.83,154.8,3.79627702]
[1729070877848,30.0,154.83,154.78,3.79627702]
[1729070878045,30.0,154.83,154.79,3.79627702]
[1729070878232,30.0,154.83,154.77,20.0]
[1729070878558,30.0,154.83,154.78,3.79500299]
[1729070878757,30.0,154.83,154.79,3.79500299]
[1729070878931,30.0,154.83,154.8,3.79500299]
[1729070879131,30.0,154.83,154.79,20.0]
[1729070879355,30.0,154.83,154.8,3.79466185]
[1729070879555,30.0,154.83,154.81,3.79472786]
[1729070879761,30.0,154.83,154.81,20.0]
[1729070880535,30.0,154.83,154.82,12.84300402]
[1729070880739,30.0,154.83,154.82,36.63685185]
[1729070885662,16.0484,154.9,154.83,20.0]
[1729070885863,16.0484,154.9,154.84,12.84300402]
[1729070886161,16.0261,154.94,154.88,12.84300402]
[1729070886332,16.0261,154.94,154.89,20.0]
[1729070886539,16.0261,154.94,154.9,3.7859036]
[1729070886743,16.0261,154.94,154.89,20.0]
[1729070887063,6.4547,154.93,154.87,20.0]
[1729070887239,6.4547,154.93,154.88,3.78669173]
[1729070887760,22.4803,154.94,154.88,3.78669173]
[1729070891257,22.4803,154.94,154.87,20.0]
[1729070892157,16.0261,154.94,154.89,20.0]
[1729070896980,16.0261,154.94,154.89,20.0]
[1729070897669,16.0261,154.94,154.83,20.96912938]
[1729070897863,23.776884,154.93,154.85,20.0]
[1729070898171,23.776884,154.93,154.86,3.77382437]
[1729070898761,23.776884,154.93,154.87,20.0]
[1729070901480,16.0261,154.94,154.87,20.0]
[1729070901786,16.0261,154.94,154.88,12.84300402]
[1729070901968,6.4883,154.97,154.9,12.84300402]
[1729070902287,6.4883,154.97,154.91,20.0]
[1729070902573,15.9539,154.98,154.92,12.84300402]
[1729070902785,15.9539,154.98,154.93,20.0]
[1729070906584,15.0893,155.02,154.95,20.0]
[1729070906789,0.49421301,155.03,154.99,20.0]
[1729070908863,0.49421301,155.03,155.0,12.84300402]
[1729070909080,0.49421301,155.03,155.01,20.0]
[1729070921200,0.49421301,155.03,155.02,12.84300402]
[1729070921404,0.49421301,155.03,155.02,32.84300402]
[1729070932413,0.49421301,155.03,154.99,20.0]
[1729070932613,0.49421301,155.03,155.01,20.0]
[1729070935501,0.49421301,155.03,155.02,32.84300402]
[1729070935701,0.49421301,155.03,155.02,56.61988802]
[1729070939218,0.49421301,155.03,155.02,43.776884]
[1729070939426,0.49421301,155.03,155.02,56.61988802]
[1729070942425,0.49421301,155.03,155.02,56.71988802]
[1729070943208,0.49421301,155.03,154.98,1.79747314]
[1729070943408,0.49421301,155.03,154.97,6.71397516]
[1729070943616,0.49421301,155.03,154.95,12.84300402]
[1729070943617,0.49421301,155.03,154.96,3.75085079]
[1729070944015,0.49421301,155.03,154.97,19.55978772]
[1729070946111,6.4449,155.16,155.08,17.951626]
[1729070946321,23.0164,155.17,155.08,17.951626]
[1729070946523,30.0,155.09,155.08,17.951626]
[1729070948712,30.0,155.09,155.06,20.0]
[1729070948926,30.0,155.09,155.06,43.776884]
[1729070952038,30.0,155.09,155.07,12.84300402]
[1729070952214,30.0,155.09,155.08,20.0]
[1729070952837,30.0,155.09,155.08,23.76675442]
[1729070953225,30.0,155.09,155.08,23.7666665]
[1729070954114,30.0,155.09,155.08,3.7666665]
[1729070955237,30.0,155.09,155.08,36.60967052]
[1729070955741,30.0,155.09,155.08,60.38655452]
[1729070956413,30.0,155.09,155.08,56.61988802]
[1729070956615,30.0,155.09,155.08,60.38312938]
[1729070962135,30.0,155.09,155.08,60.48312938]
[1729070963026,30.0,155.09,155.08,60.38312938]
[1729070964125,30.0,155.09,155.08,60.48312938]
[1729070964755,30.0,155.09,155.08,56.71988802]
[1729070964929,30.0,155.09,155.08,60.47589188]
[1729070965434,30.0,155.09,155.08,60.47590577]
[1729070965742,15.0391,155.16,155.09,43.876884]
[1729070965949,15.0391,155.16,155.11,36.61988802]
[1729070966146,15.0391,155.16,155.12,20.0]
[1729070966325,15.0391,155.16,155.14,20.0]
[1729070966654,15.0391,155.16,155.13,36.61988802]
[1729070966854,15.0391,155.16,155.14,20.0]
[1729070971648,0.620159,155.19,155.18,20.0]
[1729070971853,0.620159,155.19,155.18,32.84300402]
[1729070972047,0.620159,155.19,155.18,20.0]
[1729070972257,0.620159,155.19,155.17,20.0]
[1729070973849,0.620159,155.19,155.18,20.0]
[1729070975254,0.620159,155.19,155.18,43.776884]
[1729070978453,0.620159,155.19,155.18,52.13425236]
[1729070978660,15.0034,155.29,155.19,0.2]
[1729070978957,15.0034,155.29,155.24,20.0]
[1729070979333,15.0034,155.29,155.23,20.0]
[1729070980235,15.0034,155.29,155.26,12.84300402]
[1729070980438,15.0034,155.29,155.27,20.0]
[1729070981038,15.0034,155.29,155.19,1.06691423]
[1729070981236,15.0034,155.29,155.2,0.1]
[1729070981445,15.0034,155.29,155.24,20.0]
[1729070982454,22.0796,155.33,155.26,20.0]
[1729070982657,6.4383,155.32,155.26,20.0]
[1729070982855,0.620159,155.34,155.32,20.0]
[1729070983581,0.620159,155.34,155.31,20.0]
[1729070984139,0.620159,155.34,155.28,20.0]
[1729070984333,0.620159,155.34,155.27,9.22378674]
[1729070984334,0.620159,155.34,155.31,20.0]
[1729070992873,0.620159,155.34,155.33,20.0]
[1729070993445,0.620159,155.34,155.32,20.0]
[1729070997072,15.0141,155.33,155.22,0.1]
[1729070997269,15.0141,155.33,155.25,12.84300402]
[1729070998048,15.0141,155.33,155.22,1.86061875]
[1729070998049,15.0141,155.33,155.22,1.76061875]
[1729070998371,15.0141,155.33,155.24,12.84300402]
[1729070998967,15.0141,155.33,155.25,20.0]
[1729070999268,15.0141,155.33,155.23,32.84300402]
[1729070999464,15.0141,155.33,155.25,32.84300402]
[1729070999854,15.0141,155.33,155.27,32.84300402]
[1729071000764,0.620159,155.34,155.3,20.0]
[1729071001967,0.620159,155.34,155.28,20.0]
[1729071002872,0.620159,155.34,155.27,32.84300402]
[1729071003369,0.620159,155.34,155.3,20.0]
[1729071009354,0.620159,155.34,155.28,23.776884]
[1729071009668,0.620159,155.34,155.29,20.0]
[1729071010281,0.620159,155.34,155.3,12.84300402]
[1729071010479,0.620159,155.34,155.31,20.0]
[1729071010984,0.620159,155.34,155.27,20.0]
[1729071011160,0.620159,155.34,155.29,20.0]
[1729071011357,0.620159,155.34,155.31,20.0]
[1729071012378,0.620159,155.34,155.28,12.84300402]
[1729071012573,0.620159,155.34,155.29,20.0]
[1729071013785,0.620159,155.34,155.31,20.0]
[1729071014387,0.620159,155.34,155.28,20.0]
[1729071015084,0.620159,155.34,155.29,12.84300402]
[1729071015293,0.620159,155.34,155.3,20.0]
[1729071015786,0.620159,155.34,155.32,20.0]
[1729071023261,0.620159,155.34,155.33,56.61988802]
[1729071023464,0.620159,155.34,155.33,60.37909021]
[1729071023659,0.620159,155.34,155.33,60.37905352]
[1729071023965,0.620159,155.34,155.33,60.37878449]
[1729071025683,0.620159,155.34,155.33,3.75889647]
[1729071025890,0.620159,155.34,155.33,36.60190049]
[1729071026283,0.620159,155.34,155.33,3.75889647]
[1729071026489,0.620159,155.34,155.31,12.84300402]
[1729071026691,0.620159,155.34,155.32,3.75889647]
[1729071026999,0.620159,155.34,155.31,12.84300402]
[1729071027000,0.620159,155.34,155.33,3.75889647]
[1729071027291,0.620159,155.34,155.32,3.75889647]
[1729071027497,0.620159,155.34,155.31,12.84300402]
[1729071027796,0.620159,155.34,155.32,20.0]
[1729071027997,0.620159,155.34,155.32,23.76556018]
[1729071028171,0.620159,155.34,155.33,3.76670625]
[1729071029894,30.620159,155.34,155.33,3.76670625]
[1729071031601,30.620159,155.34,155.33,60.38659427]
[1729071032375,30.620159,155.34,155.33,36.60971027]
[1729071032895,28.951959,155.34,155.33,60.38659427]
[1729071033072,15.7732,155.42,155.34,43.776884]
[1729071033274,15.7732,155.42,155.38,20.0]
[1729071033494,30.0,155.39,155.38,20.0]
[1729071034601,30.0,155.39,155.35,20.0]
[1729071034789,30.0,155.39,155.36,3.76257461]
[1729071034972,30.0,155.39,155.35,32.84300402]
[1729071035977,30.0,155.39,155.32,0.1]
[1729071035978,30.0,155.39,155.37,32.84300402]
[1729071039985,30.0,155.39,155.38,23.776884]
[1729071040289,30.0,155.39,155.38,20.0]
[1729071040822,30.0,155.39,155.36,20.0]
[1729071045212,30.0,155.39,155.38,20.0]
[1729071045412,30.0,155.39,155.38,43.776884]
[1729071045590,30.0,155.39,155.38,20.0]
[1729071047500,30.0,155.39,155.37,20.96575736]
[1729071047702,30.0,155.39,155.37,20.0]
[1729071049121,30.0,155.39,155.38,12.84300402]
[1729071049308,30.0,155.39,155.38,32.84300402]
[1729071052727,15.0159,155.45,155.39,20.0]
[1729071053021,30.0,155.4,155.39,20.0]
[1729071054118,30.0,155.4,155.34,20.0]
[1729071054323,30.0,155.4,155.36,20.0]
[1729071054939,30.0,155.4,155.39,20.0]
[1729071055427,30.0,155.4,155.36,20.0]
[1729071056319,30.0,155.4,155.33,20.0]
[1729071056629,30.0,155.4,155.36,20.0]
[1729071058307,30.0,155.4,155.36,20.0]
[1729071059930,30.0,155.4,155.37,12.84300402]
[1729071060131,30.0,155.4,155.38,20.0]
[1729071060720,30.0,155.4,155.32,20.2]
[1729071060924,30.0,155.4,155.38,20.0]
[1729071064430,30.0,155.4,155.34,20.0]
[1729071064738,30.0,155.4,155.33,7.68722917]
[1729071064739,30.0,155.4,155.37,20.0]
[1729071065742,30.0,155.4,155.38,3.75429799]
[1729071065915,30.0,155.4,155.37,20.0]
[1729071066432,30.0,155.4,155.38,3.75490685]
[1729071066635,30.0,155.4,155.38,3.75492482]
[1729071067537,30.0,155.4,155.37,20.0]
[1729071067733,30.0,155.4,155.38,3.75411265]
[1729071068623,30.0,155.4,155.38,3.75483516]
[1729071069426,30.0,155.4,155.39,20.0]
[1729071070061,30.0,155.4,155.34,20.0]
[1729071070352,16.1054,155.39,155.35,3.75463907]
[1729071070642,30.0,155.38,155.34,3.75463907]
[1729071070833,30.0,155.38,155.35,3.75463907]
[1729071071033,30.0,155.38,155.34,3.75463907]
[1729071071343,30.0,155.38,155.35,3.75463907]
[1729071071546,30.0,155.38,155.34,23.75463907]
[1729071071848,30.0,155.38,155.35,3.75463907]
[1729071072234,30.0,155.38,155.36,23.75463907]
[1729071072439,30.0,155.38,155.36,20.0]
[1729071074248,30.0,155.38,155.37,3.75795724]
[1729071074449,6.4717,155.41,155.37,3.75795724]
[1729071074853,16.1054,155.43,155.38,3.75795724]
[1729071075026,16.1054,155.43,155.37,3.75795724]
[1729071075227,16.1054,155.43,155.38,3.75795724]
[1729071075440,16.1054,155.43,155.36,23.75795724]
[1729071075640,16.1054,155.43,155.37,3.75795724]
[1729071075953,16.1054,155.43,155.38,3.75795724]
[1729071076126,16.1054,155.43,155.37,3.75795724]
[1729071076326,16.1054,155.43,155.38,3.75795724]
[1729071076638,16.1054,155.43,155.36,20.0]
[1729071076840,16.1054,155.43,155.37,3.76210838]
[1729071077031,16.1054,155.43,155.38,3.76210838]
[1729071077354,16.1054,155.43,155.36,20.0]
[1729071077539,16.1054,155.43,155.37,3.76415963]
[1729071077743,16.1054,155.43,155.38,3.76415963]
[1729071078037,16.1054,155.43,155.39,3.76415963]
[1729071078239,16.1054,155.43,155.36,20.0]
[1729071078556,22.5392,155.43,155.37,3.7658971]
[1729071078852,16.1054,155.43,155.38,3.7658971]
[1729071079060,16.1054,155.43,155.37,20.0]
[1729071079061,16.1054,155.43,155.39,3.7658971]
[1729071079239,16.1054,155.43,155.37,20.0]
[1729071079425,16.1054,155.43,155.39,20.0]
[1729071079630,16.1054,155.43,155.4,3.76655499]
[1729071079851,16.1054,155.43,155.41,3.76511505]
[1729071080152,16.1054,155.43,155.39,20.0]
[1729071080450,16.1054,155.43,155.4,3.76522639]
[1729071080766,16.1054,155.43,155.41,3.76522639]
[1729071080952,16.1054,155.43,155.39,20.0]
[1729071081253,16.1054,155.43,155.4,3.76716435]
[1729071081448,16.1054,155.43,155.41,3.76716435]
[1729071081647,16.1054,155.43,155.39,20.0]
[1729071081850,16.1054,155.43,155.4,3.76782583]
[1729071082054,16.1054,155.43,155.41,3.76782583]
[1729071082357,16.1054,155.43,155.39,20.0]
[1729071083857,22.8394,155.48,155.43,20.0]
[1729071084073,6.433,155.45,155.41,20.0]
[1729071084229,6.4329,155.46,155.41,20.0]
[1729071084433,6.4331,155.45,155.38,20.0]
[1729071085255,6.4326,155.46,155.38,20.0]
[1729071085834,16.5074,155.48,155.38,20.0]
[1729071086035,6.4326,155.46,155.39,20.0]
[1729071088941,6.4326,155.46,155.36,32.84300402]
[1729071089545,16.5074,155.48,155.4,12.84300402]
[1729071089546,16.4074,155.48,155.4,12.84300402]
[1729071089749,16.4074,155.48,155.41,20.0]
[1729071089959,22.8394,155.48,155.41,20.0]
[1729071090534,16.4074,155.48,155.41,20.0]
[1729071090748,16.4074,155.48,155.42,12.84300402]
[1729071091245,16.4074,155.48,155.43,20.0]
[1729071092269,22.8393,155.48,155.43,20.0]
[1729071092952,16.4074,155.48,155.43,20.0]
[1729071093464,16.4074,155.48,155.4,12.84300402]
[1729071093966,16.4074,155.48,155.41,20.0]
[1729071094151,16.4074,155.48,155.42,12.84300402]
[1729071094333,16.4074,155.48,155.43,20.0]
[1729071095161,16.4074,155.48,155.42,20.0]
[1729071096961,16.4074,155.48,155.44,20.0]
[1729071097545,16.4074,155.48,155.42,20.0]
[1729071098790,0.620159,155.49,155.42,20.0]
[1729071098977,0.620159,155.49,155.43,20.0]
[1729071100869,0.620159,155.49,155.45,20.0]
[1729071102172,0.620159,155.49,155.42,32.84300402]
[1729071102555,7.051459,155.49,155.42,20.0]
[1729071102776,7.051459,155.49,155.41,16.1152]
[1729071102777,7.051459,155.49,155.41,32.84300402]
[1729071104956,0.620159,155.49,155.41,32.84300402]
[1729071107661,7.051359,155.49,155.41,32.84300402]
[1729071108158,0.620159,155.49,155.41,32.84300402]
[1729071108860,0.620159,155.49,155.44,20.0]
[1729071110754,6.4304,155.51,155.49,1.154883]
[1729071111895,6.4308,155.5,155.49,1.154883]
[1729071113184,12.6414,155.5,155.49,1.154883]
[1729071115856,12.6414,155.5,155.49,1.154883]
[1729071118567,6.2106,155.5,155.49,1.154883]
[1729071119080,12.6414,155.5,155.49,1.154883]
[1729071123567,6.2106,155.5,155.49,1.154883]
[1729071123769,6.4307,155.51,155.49,1.154883]
[1729071125499,21.6416,155.52,155.49,1.154883]
[1729071127868,21.7416,155.52,155.49,1.154883]
[1729071128666,21.6416,155.52,155.49,1.154883]
[1729071128867,6.4305,155.51,155.49,1.154883]
[1729071132269,21.6417,155.52,155.49,1.154883]
[1729071133986,6.4308,155.51,155.49,1.154883]
[1729071134292,19.44,155.55,155.49,1.154883]
[1729071134504,6.4303,155.52,155.49,1.154883]
[1729071134963,0.1,155.53,155.49,1.154883]
[1729071135166,6.4304,155.51,155.49,1.154883]
[1729071135399,30.0,155.5,155.49,1.154883]
[1729071145806,25.232197,155.5,155.49,1.154883]
[1729071155917,25.232197,155.5,155.49,33.99788702]
[1729071156252,15.9803,155.56,155.49,33.99788702]
[1729071156598,15.9803,155.56,155.5,20.0]
[1729071156795,6.6336,155.58,155.5,20.0]
[1729071157010,13.0613,155.58,155.5,20.0]
[1729071158030,6.4272,155.59,155.5,20.0]
[1729071159305,15.2207,155.6,155.5,20.0]
[1729071159510,6.4276,155.58,155.5,20.0]
[1729071161498,6.4283,155.57,155.5,20.0]
[1729071161717,30.0,155.51,155.48,20.0]
[1729071168528,30.0,155.51,155.49,3.74300497]
[1729071169407,30.0,155.51,155.48,20.0]
[1729071169615,30.0,155.51,155.49,3.74302568]
[1729071173743,30.0,155.51,155.48,32.84300402]
[1729071173918,30.0,155.51,155.49,3.74053728]
[1729071177417,30.0,155.51,155.49,3.74056953]
[1729071179443,6.4284,155.56,155.49,4.705619]
[1729071179741,6.4284,155.56,155.49,3.74056953]
[1729071180931,6.4284,155.56,155.49,3.74146658]
[1729071181536,0.2,155.58,155.49,3.74146658]
[1729071181842,21.7342,155.55,155.49,3.74146658]
[1729071182042,21.7342,155.55,155.48,3.74146658]
[1729071182226,15.3054,155.55,155.48,3.74146658]
[1729071184138,15.3054,155.55,155.48,3.74166093]
[1729071185146,15.3054,155.55,155.49,3.74166093]
[1729071185341,15.3054,155.55,155.48,3.74166093]
[1729071185649,6.5278,155.58,155.49,23.74166093]
[1729071185941,6.4278,155.58,155.5,3.74166093]
[1729071186273,6.5278,155.58,155.5,3.74166093]
[1729071186416,6.4278,155.58,155.5,3.74166093]
[1729071186616,6.5278,155.58,155.5,3.74166093]
[1729071186916,6.4278,155.58,155.5,3.74166093]
[1729071187231,6.5278,155.58,155.5,3.74166093]
[1729071187814,6.5278,155.58,155.49,20.0]
[1729071188015,6.5278,155.58,155.5,3.741751]
[1729071188241,6.4278,155.58,155.5,3.741751]
[1729071188540,23.0638,155.59,155.51,23.741751]
[1729071188856,23.0638,155.59,155.52,3.741751]
[1729071189645,23.0638,155.59,155.5,3.741751]
[1729071189818,23.0638,155.59,155.51,3.741751]
[1729071190021,16.6366,155.59,155.51,20.0]
[1729071190225,16.6366,155.59,155.52,3.741751]
[1729071190439,6.4268,155.6,155.52,3.741751]
[1729071190645,6.4264,155.61,155.53,20.0]
[1729071193027,6.4264,155.61,155.54,3.74018082]
[1729071193532,0.620159,155.65,155.58,12.84300402]
[1729071193731,0.620159,155.65,155.59,20.0]
[1729071195631,0.620159,155.65,155.57,20.0]
[1729071195955,15.3444,155.64,155.52,32.84300402]
[1729071196161,6.426,155.62,155.52,12.84300402]
[1729071196445,21.6698,155.64,155.52,12.84300402]
[1729071196633,21.7698,155.64,155.52,12.84300402]
[1729071197026,21.7695,155.64,155.52,12.84300402]
[1729071197255,21.7695,155.64,155.53,20.0]
[1729071197638,21.6695,155.64,155.53,20.0]
[1729071197841,15.2444,155.64,155.55,43.776884]
[1729071198048,15.2444,155.64,155.57,20.0]
[1729071199756,15.2444,155.64,155.58,3.73162992]
[1729071200361,15.2444,155.64,155.57,20.0]
[1729071201055,15.2444,155.64,155.56,20.0]
[1729071201280,15.2444,155.64,155.57,3.72987122]
[1729071201461,6.4256,155.63,155.57,3.72987122]
[1729071201647,15.2444,155.64,155.56,3.72904663]
[1729071201838,21.6695,155.64,155.56,3.72904663]
[1729071202237,15.2444,155.64,155.56,23.72904663]
[1729071202442,15.2444,155.64,155.57,23.72904663]
[1729071202667,15.2444,155.64,155.57,20.0]
[1729071202963,15.2444,155.64,155.56,20.0]
[1729071203273,15.2444,155.64,155.57,3.72782618]
[1729071204537,15.2444,155.64,155.56,20.0]
[1729071205169,15.2444,155.64,155.56,12.84300402]
[1729071205359,15.2444,155.64,155.57,20.0]
[1729071210638,15.2444,155.64,155.55,0.96468388]
[1729071210639,15.2444,155.64,155.58,12.84300402]
[1729071210835,15.2444,155.64,155.59,20.0]
[1729071211661,0.620159,155.65,155.6,12.84300402]
[1729071211972,0.620159,155.65,155.58,12.84300402]
[1729071212150,0.620159,155.65,155.59,20.0]
[1729071216568,0.620159,155.65,155.58,12.84300402]
[1729071216569,0.620159,155.65,155.57,32.84300402]
[1729071217562,0.620159,155.65,155.53,32.3577747]
[1729071217563,21.7554,155.64,155.53,6.71677823]
[1729071217765,21.7554,155.64,155.52,22.71097312]
[1729071217977,6.4262,155.62,155.53,3.7204691]
[1729071218149,0.1,155.63,155.53,3.7204691]
[1729071218566,21.7554,155.64,155.53,3.7204691]
[1729071218567,21.8554,155.64,155.53,3.7204691]
[1729071219350,6.4263,155.61,155.53,23.7204691]
[1729071219669,6.4263,155.61,155.53,20.0]
[1729071223875,21.8554,155.64,155.53,20.0]
[1729071224083,6.4267,155.6,155.53,20.0]
[1729071224266,6.4263,155.62,155.53,20.0]
[1729071224575,21.8554,155.64,155.53,20.0]
[1729071224776,6.4263,155.61,155.53,20.0]
[1729071225355,6.4263,155.61,155.54,23.72345829]
[1729071225679,6.4263,155.61,155.54,20.0]
[1729071226055,6.4263,155.61,155.53,20.0]
[1729071226381,6.4263,155.61,155.54,3.72363682]
[1729071227481,6.4263,155.61,155.53,20.0]
[1729071227659,6.4263,155.61,155.54,3.72474897]
[1729071230184,6.4263,155.61,155.54,3.7262051]
[1729071230391,6.4263,155.61,155.54,3.72725379]
[1729071231676,28.0808,155.64,155.54,16.57025781]
[1729071231862,21.6554,155.64,155.56,12.84300402]
[1729071232062,28.0804,155.64,155.57,20.0]
[1729071232379,0.620159,155.65,155.59,20.0]
[1729071232690,7.045059,155.65,155.59,20.0]
[1729071232980,7.045059,155.65,155.58,20.0]
[1729071233185,0.620159,155.65,155.58,20.0]
[1729071235060,0.620159,155.65,155.59,12.84300402]
[1729071235267,0.620159,155.65,155.6,20.0]
[1729071237395,0.620159,155.65,155.57,32.84300402]
[1729071237585,0.620159,155.65,155.58,3.73255292]
[1729071237904,0.620159,155.65,155.59,3.73255292]
[1729071238077,0.620159,155.65,155.58,3.73255292]
[1729071238267,0.620159,155.65,155.57,32.84300402]
[1729071238268,0.620159,155.65,155.59,3.73255292]